bitfinex/quotes_SOLUSD_20250317
["timestamp","ask_amount","ask_price","bid_price","bid_amount"]
[1742183647167,0.03,129.23,129.22,18.33850954]
[1742183648668,0.03,129.23,129.22,7.7387]
[1742183649871,0.03,129.23,129.22,18.33850954]
[1742183653468,0.03,129.23,129.19,10.59980954]
[1742183653772,10.62980954,129.23,129.2,6.64]
[1742183655372,0.03,129.23,129.21,10.59980954]
[1742183655560,0.03,129.23,129.22,10.59980954]
[1742183655967,0.03,129.23,129.22,91.68413268]
[1742183656374,0.03,129.23,129.22,110.33378154]
[1742183656675,0.03,129.23,129.22,91.39980954]
[1742183657373,0.03,129.23,129.22,99.13850954]
[1742183659378,0.03,129.23,129.22,118.07248154]
[1742183659879,0.03,129.23,129.22,99.13850954]
[1742183664393,0.03,129.23,129.22,7.7387]
[1742183665171,0.03,129.23,129.22,18.33850954]
[1742183665767,0.03,129.23,129.21,10.59980954]
[1742183666073,0.03,129.23,129.22,6.64]
[1742183668178,0.03,129.23,129.22,14.3787]
[1742183668387,0.03,129.23,129.22,6.64]
[1742183671794,0.03,129.23,129.21,18.33890954]
[1742183671987,0.03,129.23,129.22,6.64]
[1742183676094,0.03,129.23,129.21,18.33890954]
[1742183676393,0.03,129.23,129.22,6.62]
[1742183677998,10.62980954,129.23,129.19,7.7402]
[1742183678186,10.62980954,129.23,129.19,14.3602]
[1742183678399,10.62980954,129.23,129.19,24.96000954]
[1742183681804,10.59980954,129.2,129.15,80.8]
[1742183682101,10.59980954,129.19,129.16,6.62]
[1742183683310,18.34070954,129.19,129.16,6.62]
[1742183683600,18.34000954,129.2,129.16,6.62]
[1742183683987,18.34000954,129.2,129.17,6.62]
[1742183684189,10.59980954,129.19,129.17,6.62]
[1742183684888,10.59980954,129.22,129.17,17.21980954]
[1742183685605,10.59980954,129.22,129.18,7.7411]
[1742183686286,16.0032,129.23,129.18,7.7411]
[1742183686912,10.59980954,129.2,129.15,29.39161997]
[1742183687111,16.0032,129.23,129.15,29.39161997]
[1742183687112,10.59980954,129.19,129.16,6.62]
[1742183688188,18.34040954,129.19,129.16,6.62]
[1742183688395,10.59980954,129.19,129.16,6.62]
[1742183688918,18.34060954,129.19,129.16,6.62]
[1742183689216,10.59980954,129.18,129.16,6.62]
[1742183689814,18.34100954,129.18,129.16,6.62]
[1742183690115,10.59980954,129.17,129.16,6.62]
[1742183690299,10.59980954,129.18,129.16,6.62]
[1742183691311,18.34090954,129.18,129.16,6.62]
[1742183691814,10.59980954,129.18,129.16,6.62]
[1742183693092,18.34120954,129.18,129.16,6.62]
[1742183693408,10.59980954,129.19,129.16,6.62]
[1742183693710,24.31070097,129.28,129.25,20.28432314]
[1742183693711,9.743e-05,129.26,129.25,20.28432314]
[1742183693897,9.743e-05,129.26,129.25,17.43980954]
[1742183694094,12.15544791,129.26,129.25,17.43980954]
[1742183694793,12.15535048,129.26,129.25,17.43980954]
[1742183695309,12.15535048,129.26,129.25,30.9444919]
[1742183695614,12.15535048,129.26,129.24,6.84]
[1742183696685,12.15535048,129.26,129.24,23.2075919]
[1742183697314,12.15535048,129.26,129.24,30.9449919]
[1742183697516,16.3675919,129.29,129.24,30.9449919]
[1742183697911,16.3675919,129.3,129.25,16.3675919]
[1742183699206,36.3675919,129.32,129.27,16.3675919]
[1742183699529,20.0,129.32,129.28,24.1026919]
[1742183700027,17.9072919,129.33,129.28,24.1026919]
[1742183700706,17.9072919,129.33,129.29,6.84]
[1742183701313,0.03,129.3,129.29,6.84]
[1742183701517,0.03,129.3,129.29,14.5745]
[1742183702027,0.03,129.3,129.29,30.9420919]
[1742183707525,0.03,129.34,129.29,69.2123639]
[1742183707703,0.03,129.34,129.31,16.3675919]
[1742183708221,0.03,129.34,129.32,7.7327]
[1742183713324,0.03,129.34,129.33,16.3675919]
[1742183714231,1.5697,129.36,129.34,0.14216157]
[1742183714232,0.03,129.36,129.34,0.14216157]
[1742183714413,16.3675919,129.41,129.35,23.1675919]
[1742183714728,16.3675919,129.41,129.37,16.3675919]
[1742183714913,16.3675919,129.39,129.35,6.8]
[1742183715224,16.3675919,129.39,129.35,23.1675919]
[1742183715529,16.3675919,129.39,129.36,7.7303]
[1742183715729,16.3675919,129.4,129.36,7.7303]
[1742183716521,20.0,129.4,129.36,24.0978919]
[1742183716727,16.3675919,129.41,129.36,24.0978919]
[1742183716932,36.3675919,129.4,129.36,24.0978919]
[1742183717136,36.3675919,129.4,129.36,7.7303]
[1742183717437,7.7315,129.43,129.37,16.3675919]
[1742183717729,7.7315,129.43,129.38,16.3675919]
[1742183717910,16.3675919,129.43,129.38,16.3675919]
[1742183718113,16.3675919,129.44,129.39,16.3675919]
[1742183719129,16.3675919,129.43,129.4,7.7279]
[1742183719524,16.3675919,129.44,129.4,7.7279]
[1742183720441,16.3675919,129.45,129.4,50.2753919]
[1742183721022,16.3675919,129.46,129.4,50.2753919]
[1742183721221,16.3675919,129.46,129.41,16.3675919]
[1742183722034,16.3975919,129.47,129.42,16.3675919]
[1742183722229,0.03,129.47,129.43,16.3675919]
[1742183722942,0.03,129.47,129.42,16.3675919]
[1742183723234,0.03,129.47,129.43,7.7261]
[1742183724137,0.03,129.47,129.43,27.0415]
[1742183724321,0.03,129.47,129.44,16.3675919]
[1742183725444,0.03,129.47,129.45,24.0924919]
[1742183725623,0.03,129.47,129.45,7.7249]
[1742183726158,0.03,129.46,129.45,7.7249]
[1742183726322,0.03,129.47,129.45,30.9524919]
[1742183726816,16.3675919,129.5,129.45,50.2648919]
[1742183727013,19.1643384,129.51,129.45,50.2648919]
[1742183727234,19.1643384,129.51,129.46,16.3675919]
[1742183727425,19.1643384,129.51,129.47,7.7237]
[1742183727630,16.3675919,129.5,129.47,7.7237]
[1742183728047,16.3675919,129.5,129.47,27.0331]
[1742183728351,2.7967465,129.51,129.47,43.4006919]
[1742183728526,2.7967465,129.51,129.47,27.0331]
[1742183728731,2.7967465,129.51,129.47,43.4006919]
[1742183729034,19.1643384,129.51,129.47,27.0331]
[1742183730027,2.7967465,129.51,129.47,43.4006919]
[1742183730347,2.7967465,129.51,129.47,355.4006919]
[1742183730739,2.7967465,129.51,129.48,16.3675919]
[1742183731447,2.7967465,129.51,129.49,7.7226]
[1742183732748,16.3675919,129.5,129.46,7.7243]
[1742183733054,16.3675919,129.47,129.44,6.86]
[1742183734144,16.3675919,129.48,129.44,14.5852]
[1742183734334,16.3675919,129.47,129.44,14.5852]
[1742183734719,16.3675919,129.48,129.44,7.7252]
[1742183737649,16.3675919,129.45,129.42,7.7262]
[1742183737847,16.3675919,129.45,129.42,14.5662]
[1742183738641,16.3675919,129.45,129.44,0.063]
[1742183741344,24.0924919,129.45,129.44,0.063]
[1742183747352,24.5924919,129.45,129.44,0.063]
[1742183747543,24.0924919,129.45,129.44,0.063]
[1742183748051,20.0,129.42,129.36,321.3779]
[1742183748235,16.3675919,129.4,129.36,318.883]
[1742183748637,16.3675919,129.39,129.36,0.063]
[1742183749260,16.3675919,129.4,129.36,0.063]
[1742183749438,24.0956919,129.4,129.36,0.063]
[1742183749954,16.3675919,129.39,129.36,0.063]
[1742183750128,16.3675919,129.38,129.36,0.063]
[1742183750941,16.3675919,129.37,129.36,0.063]
[1742183751532,24.0972919,129.37,129.36,0.063]
[1742183752745,20.0,129.34,129.31,0.063]
[1742183752947,16.3675919,129.32,129.31,0.063]
[1742183753141,16.3675919,129.32,129.25,0.063]
[1742183753358,20.0,129.3,129.25,16.4305919]
[1742183753548,36.3675919,129.3,129.25,24.1671919]
[1742183753945,16.3675919,129.29,129.25,7.7996]
[1742183754149,16.3675919,129.29,129.25,14.6396]
[1742183754549,16.3675919,129.29,129.25,6.903]
[1742183755259,16.3675919,129.31,129.26,16.3675919]
[1742183755657,16.3675919,129.32,129.27,24.1032919]
[1742183756248,16.3675919,129.31,129.27,7.7357]
[1742183756964,16.3675919,129.3,129.27,7.7357]
[1742183757766,29.2762,129.33,129.27,7.7357]
[1742183757952,16.3675919,129.3,129.27,7.7357]
[1742183759566,16.3675919,129.3,129.26,7.7363]
[1742183760274,16.3675919,129.29,129.26,7.7363]
[1742183760444,16.3675919,129.3,129.26,7.7363]
[1742183761765,16.3675919,129.3,129.26,319.7363]
[1742183763069,16.3675919,129.3,129.26,312.0]
[1742183763668,19.329,129.34,129.26,312.0]
[1742183763669,22.5040919,129.36,129.28,16.3675919]
[1742183763864,16.3675919,129.35,129.29,16.3675919]
[1742183764176,16.3675919,129.35,129.3,6.82]
[1742183764351,16.3675919,129.34,129.3,6.82]
[1742183764550,16.3675919,129.35,129.3,23.1875919]
[1742183764955,16.3675919,129.36,129.31,16.3675919]
[1742183765156,16.3675919,129.36,129.32,7.7327]
[1742183765450,16.3675919,129.37,129.32,24.1002919]
[1742183766792,16.3675919,129.37,129.32,336.1002919]
[1742183767451,7.7287,129.39,129.32,336.1002919]
[1742183767675,16.3675919,129.38,129.33,16.3675919]
[1742183767850,16.3675919,129.38,129.34,7.7315]
[1742183768670,16.3675919,129.42,129.35,6.82]
[1742183768879,16.3675919,129.39,129.35,6.82]
[1742183769460,16.3675919,129.38,129.35,6.82]
[1742183770475,16.3675919,129.38,129.35,14.5504]
[1742183770978,16.3675919,129.38,129.35,326.5504]
[1742183773073,24.0943919,129.42,129.35,326.5504]
[1742183773371,16.3675919,129.4,129.35,342.9179919]
[1742183773573,16.3675919,129.39,129.35,326.5504]
[1742183776566,16.3975919,129.39,129.35,14.5504]
[1742183777658,16.3675919,129.36,129.34,6.8]
[1742183777851,16.3675919,129.35,129.32,6.8]
[1742183778163,16.3675919,129.33,129.31,6.8]
[1742183778579,16.3675919,129.33,129.31,14.533]
[1742183779476,16.3675919,129.33,129.3,327.6744]
[1742183779672,16.3675919,129.33,129.31,6.8]
[1742183780678,16.3675919,129.33,129.31,14.5333]
[1742183781769,16.3675919,129.34,129.31,14.5333]
[1742183784657,16.3675919,129.34,129.31,6.8]
[1742183785180,16.3675919,129.34,129.31,14.5332]
[1742183785570,16.3675919,129.34,129.31,326.5332]
[1742183789284,16.3675919,129.34,129.31,14.5332]
[1742183792082,16.3675919,129.34,129.31,6.8]
[1742183792387,16.3675919,129.33,129.31,6.8]
[1742183793081,10.47097402,129.33,129.31,6.8]
[1742183796376,7.7312,129.35,129.31,6.8]
[1742183796581,10.47097402,129.33,129.31,6.8]
[1742183800496,7.7303,129.36,129.31,14.5332]
[1742183800704,10.47097402,129.36,129.31,25.00417402]
[1742183800879,0.03,129.37,129.33,7.7321]
[1742183801075,10.50097402,129.37,129.33,7.7321]
[1742183802796,10.50097402,129.37,129.33,18.20307402]
[1742183803896,10.50097402,129.37,129.33,330.20307402]
[1742183806193,0.03,129.37,129.33,330.20307402]
[1742183806396,0.03,129.37,129.35,10.47097402]
[1742183806577,0.03,129.37,129.36,17.19097402]
[1742183806782,0.03,129.37,129.36,6.72]
[1742183807379,0.03,129.37,129.36,14.4503]
[1742183814209,0.03,129.37,129.36,22.5233]
[1742183814389,0.03,129.37,129.36,32.99427402]
[1742183815484,0.03,129.37,129.36,14.4503]
[1742183817211,0.03,129.37,129.36,326.4503]
[1742183817803,0.03,129.37,129.36,14.4503]
[1742183818105,0.03,129.37,129.36,6.72]
[1742183819407,0.03,129.37,129.36,14.4503]
[1742183820897,0.03,129.37,129.36,6.72]
[1742183821294,10.50097402,129.37,129.36,6.7]
[1742183822410,0.03,129.37,129.36,6.7]
[1742183822912,10.50097402,129.37,129.36,6.7]
[1742183823706,10.50097402,129.37,129.35,6.7]
[1742183825793,10.50097402,129.37,129.35,318.7]
[1742183825993,10.50097402,129.37,129.35,6.7]
[1742183827517,10.50097402,129.37,129.35,14.4309]
[1742183828013,0.03,129.37,129.35,14.4309]
[1742183828221,10.47097402,129.36,129.33,14.412]
[1742183828523,10.47097402,129.36,129.33,6.68]
[1742183830727,18.20137402,129.36,129.33,6.68]
[1742183831229,10.47097402,129.35,129.33,6.68]
[1742183832427,18.20217402,129.35,129.33,6.68]
[1742183834731,7.7312,129.35,129.33,6.68]
[1742183834935,18.20217402,129.35,129.33,6.68]
[1742183835607,10.47097402,129.34,129.31,312.063]
[1742183835804,10.47097402,129.33,129.31,6.723]
[1742183836006,10.47097402,129.34,129.31,6.723]
[1742183836734,18.20287402,129.34,129.31,6.723]
[1742183837435,18.20287402,129.34,129.31,0.063]
[1742183837734,18.20287402,129.34,129.31,6.723]
[1742183838041,10.47097402,129.33,129.31,6.723]
[1742183838737,10.47097402,129.33,129.31,318.723]
[1742183839027,18.20317402,129.33,129.31,312.063]
[1742183839235,10.47097402,129.32,129.31,0.063]
[1742183841221,18.20367402,129.32,129.31,0.063]
[1742183842430,10.47097402,129.32,129.31,0.063]
[1742183842810,10.47097402,129.33,129.31,0.063]
[1742183843436,10.47097402,129.34,129.31,0.063]
[1742183843619,10.47097402,129.35,129.31,0.063]
[1742183844433,10.47097402,129.34,129.31,0.063]
[1742183846037,10.47097402,129.33,129.31,0.063]
[1742183846531,10.47097402,129.32,129.31,0.063]
[1742183847330,10.47097402,129.33,129.31,0.063]
[1742183853338,10.47097402,129.32,129.31,0.063]
[1742183856137,10.47097402,129.33,129.31,0.063]
[1742183860442,10.47097402,129.32,129.31,0.063]
[1742183860941,10.47097402,129.33,129.31,0.063]
[1742183861543,0.03,129.34,129.31,0.063]
[1742183862221,0.03,129.34,129.31,10.53397402]
[1742183862949,0.03,129.34,129.32,7.7327]
[1742183863138,0.03,129.34,129.33,6.64]
[1742183871046,0.03,129.34,129.33,14.3721]
[1742183873853,0.03,129.34,129.33,6.64]
[1742183875250,10.50097402,129.34,129.31,0.063]
[1742183875553,10.47097402,129.32,129.31,0.063]
[1742183877657,18.20367402,129.32,129.31,0.063]
[1742183880759,10.47097402,129.32,129.31,0.063]
[1742183881456,27.7324,129.33,129.31,0.063]
[1742183885762,38.20337402,129.33,129.31,0.063]
[1742183886962,30.47097402,129.33,129.31,0.063]
[1742183890457,20.0,129.33,129.31,0.063]
[1742183890764,30.47097402,129.33,129.31,0.063]
[1742183893475,20.0,129.33,129.31,0.063]
[1742183893651,0.03,129.34,129.31,10.53397402]
[1742183893966,0.03,129.34,129.32,10.47097402]
[1742183894847,0.03,129.34,129.31,10.53397402]
[1742183895766,0.03,129.34,129.32,7.7327]
[1742183897688,0.03,129.34,129.31,0.063]
[1742183897849,10.50097402,129.34,129.31,0.063]
[1742183898667,0.03,129.34,129.31,6.683]
[1742183899558,0.03,129.34,129.31,17.15397402]
[1742183899870,0.03,129.34,129.32,7.7327]
[1742183902447,0.03,129.34,129.32,18.20367402]
[1742183904174,0.03,129.34,129.32,7.7327]
[1742183905364,0.03,129.34,129.32,18.20367402]
[1742183911072,0.03,129.34,129.32,7.7327]
[1742183919780,0.03,129.34,129.32,18.20367402]
[1742183919972,0.03,129.34,129.33,10.47097402]
[1742183920705,0.03,129.34,129.33,322.47097402]
[1742183921296,0.03,129.34,129.32,99.00367402]
[1742183921588,0.03,129.34,129.32,88.5327]
[1742183923301,0.03,129.34,129.32,99.00367402]
[1742183924105,0.03,129.34,129.32,88.5327]
[1742183928616,0.03,129.34,129.31,14.4161]
[1742183931104,0.03,129.34,129.31,6.683]
[1742183931483,0.03,129.34,129.31,24.88717402]
[1742183932204,0.03,129.34,129.32,10.47097402]
[1742183933214,0.03,129.34,129.32,18.20317402]
[1742183934709,0.03,129.34,129.32,7.7322]
[1742183935818,0.03,129.34,129.31,24.88697402]
[1742183936217,0.03,129.34,129.31,336.88697402]
[1742183936516,0.03,129.34,129.31,24.88697402]
[1742183937719,0.03,129.34,129.32,10.47097402]
[1742183938607,0.03,129.34,129.33,10.47097402]
[1742183939394,0.03,129.34,129.33,322.47097402]
[1742183939800,0.03,129.34,129.33,330.20307402]
[1742183941891,0.03,129.34,129.33,349.13704602]
[1742183942092,0.03,129.34,129.33,330.20307402]
[1742183942707,0.03,129.34,129.32,99.00337402]
[1742183943216,0.03,129.34,129.32,80.8]
[1742183943608,10.47097402,129.33,129.31,6.683]
[1742183943812,10.47097402,129.33,129.31,0.063]
[1742183944990,10.47097402,129.32,129.31,0.063]
[1742183946290,18.20367402,129.32,129.31,0.063]
[1742183953518,7.7321,129.33,129.31,0.063]
[1742183953818,10.47097402,129.32,129.31,0.063]
[1742183954813,18.20367402,129.32,129.31,0.063]
[1742183955122,38.20367402,129.32,129.31,0.063]
[1742183957419,30.47097402,129.32,129.31,0.063]
[1742183957626,20.0,129.32,129.31,0.063]
[1742183958626,30.47097402,129.32,129.31,0.063]
[1742183959720,38.20367402,129.32,129.31,0.063]
[1742183960405,30.47097402,129.32,129.31,0.063]
[1742183961327,38.20367402,129.32,129.31,0.063]
[1742183961709,27.7327,129.32,129.31,0.063]
[1742183962427,0.03,129.34,129.31,0.063]
[1742183962830,0.03,129.34,129.31,10.53397402]
[1742183963849,0.03,129.34,129.33,10.47097402]
[1742183964930,0.03,129.34,129.33,17.09097402]
[1742183965541,0.03,129.34,129.33,24.82307402]
[1742183965838,0.03,129.34,129.33,6.62]
[1742183969344,7.7615,129.34,129.33,6.62]
[1742183970053,0.03,129.34,129.33,6.62]
[1742183973232,0.03,129.34,129.31,18.26717402]
[1742183973437,0.03,129.34,129.31,17.15397402]
[1742183974335,0.03,129.34,129.31,24.88717402]
[1742183975718,0.03,129.34,129.31,17.15397402]
[1742183977638,0.03,129.34,129.31,6.683]
[1742183977836,20.0,129.32,129.31,0.063]
[1742183978140,30.47097402,129.32,129.31,0.063]
[1742183979128,38.20367402,129.32,129.31,0.063]
[1742183982126,18.20367402,129.32,129.31,0.063]
[1742183983419,37.13764602,129.32,129.31,0.063]
[1742183985138,18.20367402,129.32,129.31,0.063]
[1742183986124,38.20367402,129.32,129.31,0.063]
[1742183987443,57.13764602,129.32,129.31,0.063]
[1742183987821,37.13764602,129.32,129.31,0.063]
[1742183992357,20.0,129.29,129.25,99.07087402]
[1742183992528,20.0,129.29,129.25,18.27087402]
[1742183993242,30.47097402,129.29,129.25,0.063]
[1742183993768,38.20557402,129.29,129.25,0.063]
[1742183995748,10.47097402,129.26,129.25,0.063]
[1742184002352,10.47097402,129.27,129.25,0.063]
[1742184002535,20.0,129.27,129.25,0.063]
[1742184002735,20.0,129.26,129.25,0.063]
[1742184002946,10.47097402,129.29,129.25,0.063]
[1742184003257,10.47097402,129.28,129.25,0.063]
[1742184003442,10.47097402,129.29,129.25,0.063]
[1742184004338,10.47097402,129.29,129.25,7.7999]
[1742184005673,7.734,129.3,129.25,7.7999]
[1742184005840,10.47097402,129.29,129.25,7.7999]
[1742184006641,10.47097402,129.3,129.25,18.27087402]
[1742184006843,10.47097402,129.29,129.25,7.7999]
[1742184008367,0.03,129.32,129.25,15.7923]
[1742184008568,10.50097402,129.32,129.27,10.47097402]
[1742184008745,20.0,129.3,129.27,10.47097402]
[1742184009863,20.0,129.3,129.28,7.7351]
[1742184010435,20.0,129.31,129.28,24.82607402]
[1742184010642,30.47097402,129.31,129.28,6.62]
[1742184011470,20.0,129.31,129.28,6.62]
[1742184011845,30.47097402,129.31,129.28,6.62]
[1742184012845,20.0,129.31,129.28,14.355]
[1742184013959,20.03,129.32,129.28,24.82597402]
[1742184015161,20.03,129.32,129.29,10.47097402]
[1742184015341,20.03,129.32,129.3,10.47097402]
[1742184015545,0.03,129.32,129.31,10.47097402]
[1742184016060,0.03,129.32,129.31,18.20427402]
[1742184016361,0.03,129.32,129.31,7.7333]
[1742184017358,0.03,129.32,129.31,18.20427402]
[1742184018041,0.03,129.32,129.31,10.47097402]
[1742184018246,0.03,129.32,129.3,14.2188]
[1742184018759,0.03,129.32,129.3,16.95607402]
[1742184018959,0.03,129.32,129.31,10.47097402]
[1742184020267,0.03,129.32,129.31,18.20427402]
[1742184021046,0.03,129.34,129.33,20.0]
[1742184021245,0.03,129.37,129.36,10.47097402]
[1742184022159,0.03,129.37,129.36,18.20127402]
[1742184024068,0.03,129.37,129.36,330.20127402]
[1742184025746,0.03,129.37,129.36,18.20127402]
[1742184028259,0.03,129.37,129.36,28.67224804]
[1742184028568,0.03,129.37,129.36,18.20127402]
[1742184037171,0.03,129.37,129.35,7.7306]
[1742184037357,0.03,129.37,129.35,10.47097402]
[1742184037547,0.03,129.37,129.35,6.62]
[1742184038481,0.03,129.37,129.35,6.62]
[1742184039063,0.03,129.37,129.35,14.3509]
[1742184039272,0.03,129.37,129.35,24.82187402]
[1742184039775,0.03,129.37,129.36,10.47097402]
[1742184040755,0.03,129.37,129.36,18.20127402]
[1742184042868,0.03,129.37,129.36,79.0191421]
[1742184043675,0.03,129.37,129.36,391.0191421]
[1742184044967,0.0001,129.37,129.36,471.8191421]
[1742184045869,0.0001,129.37,129.36,429.93524602]
[1742184046259,0.0001,129.37,129.36,417.62127402]
[1742184046459,0.0001,129.37,129.36,24.82127402]
[1742184046753,0.0001,129.37,129.36,18.20127402]
[1742184046956,0.0001,129.37,129.36,17.09097402]
[1742184047176,0.0001,129.37,129.36,24.82127402]
[1742184047675,0.0001,129.37,129.34,6.663]
[1742184047975,10.47107402,129.37,129.34,6.663]
[1742184048177,30.47097402,129.35,129.34,0.063]
[1742184048980,39.84887402,129.35,129.34,0.063]
[1742184050370,58.78284602,129.35,129.34,0.063]
[1742184051160,64.67881852,129.35,129.34,0.063]
[1742184052587,18.933972,129.34,129.27,6.62]
[1742184052782,16.36694652,129.31,129.27,6.62]
[1742184052974,24.10084652,129.31,129.27,6.62]
[1742184053280,16.36694652,129.29,129.27,6.62]
[1742184054365,16.36694652,129.29,129.25,23.04994652]
[1742184054566,24.10154652,129.29,129.25,6.683]
[1742184054772,16.36694652,129.29,129.25,6.683]
[1742184055182,24.10144652,129.29,129.25,6.683]
[1742184055573,16.36694652,129.29,129.25,6.683]
[1742184056075,16.36694652,129.29,129.25,0.063]
[1742184057480,16.36694652,129.29,129.25,16.42994652]
[1742184057869,16.36694652,129.29,129.25,24.16674652]
[1742184058681,24.10154652,129.29,129.25,16.42994652]
[1742184058979,16.36694652,129.29,129.25,0.063]
[1742184059184,16.36694652,129.29,129.25,16.42994652]
[1742184059362,16.36694652,129.29,129.25,24.16664652]
[1742184059773,18.01394652,129.3,129.26,16.36694652]
[1742184060167,18.01394652,129.3,129.25,7.7997]
[1742184060374,16.36694652,129.29,129.25,7.7997]
[1742184060573,20.0,129.3,129.28,16.36694652]
[1742184060770,20.0,129.3,129.27,16.36694652]
[1742184061077,1.647,129.33,129.28,16.36694652]
[1742184061280,18.01394652,129.33,129.29,16.36694652]
[1742184061978,21.647,129.33,129.3,16.36694652]
[1742184062184,20.0,129.33,129.31,16.36694652]
[1742184062372,16.36694652,129.35,129.31,16.36694652]
[1742184062983,24.43014652,129.36,129.31,16.36694652]
[1742184063172,1.647,129.36,129.32,22.98694652]
[1742184063568,16.36704652,129.37,129.33,16.36694652]
[1742184063766,20.0,129.36,129.34,24.09844652]
[1742184064173,20.0,129.36,129.34,16.36694652]
[1742184064582,0.0001,129.37,129.34,16.36694652]
[1742184064785,0.0001,129.37,129.33,24.09884652]
[1742184065680,0.0001,129.37,129.34,16.36694652]
[1742184065880,0.0001,129.37,129.34,24.09844652]
[1742184066386,0.0001,129.37,129.34,16.36694652]
[1742184066582,0.0001,129.37,129.33,16.36694652]
[1742184067089,0.0001,129.37,129.33,24.09904652]
[1742184067686,16.36704652,129.37,129.33,24.09904652]
[1742184068091,16.36704652,129.37,129.33,7.7321]
[1742184069090,16.36704652,129.37,129.32,30.71944652]
[1742184069289,24.09674652,129.37,129.32,22.98694652]
[1742184069488,16.36694652,129.33,129.3,6.62]
[1742184069880,7.7298,129.37,129.3,6.62]
[1742184069881,36.36694652,129.34,129.3,6.62]
[1742184070081,36.36694652,129.34,129.3,14.3534]
[1742184070272,36.36694652,129.34,129.3,14.3538]
[1742184070994,36.36694652,129.34,129.31,0.063]
[1742184072300,44.09864652,129.34,129.31,0.063]
[1742184072678,16.36694652,129.33,129.31,0.063]
[1742184074798,24.09904652,129.33,129.31,0.063]
[1742184075400,36.36694652,129.35,129.31,0.063]
[1742184075779,0.0001,129.37,129.34,16.36694652]
[1742184075981,7.7299,129.37,129.33,16.36694652]
[1742184076486,0.0001,129.37,129.33,16.36694652]
[1742184076681,20.0001,129.37,129.35,16.36694652]
[1742184076884,0.0001,129.37,129.35,24.09754652]
[1742184077103,20.0001,129.37,129.34,30.73824652]
[1742184077403,0.0001,129.37,129.35,16.36694652]
[1742184077602,20.0001,129.37,129.35,16.36694652]
[1742184077775,0.0001,129.37,129.35,16.36694652]
[1742184078882,0.0001,129.37,129.36,24.09724652]
[1742184080983,0.0001,129.37,129.36,16.36694652]
[1742184081299,0.0001,129.37,129.35,24.09764652]
[1742184082201,16.36694652,129.36,129.31,0.063]
[1742184082386,16.36694652,129.36,129.32,6.62]
[1742184082799,24.09734652,129.36,129.34,0.063]
[1742184084299,16.36694652,129.35,129.34,0.063]
[1742184087301,16.36694652,129.36,129.34,0.063]
[1742184090485,0.0001,129.37,129.34,0.063]
[1742184091016,0.0001,129.37,129.36,16.36694652]
[1742184091197,0.0001,129.37,129.36,22.98694652]
[1742184091805,0.0001,129.37,129.36,30.71724652]
[1742184093405,0.0001,129.37,129.36,342.71724652]
[1742184094206,0.0001,129.37,129.36,334.98694652]
[1742184094411,0.0001,129.37,129.36,6.62]
[1742184095118,0.0001,129.37,129.36,6.64]
[1742184095814,0.0001,129.37,129.36,14.3703]
[1742184095997,0.0001,129.37,129.36,30.73724652]
[1742184096389,0.0001,129.37,129.36,23.00694652]
[1742184097489,0.0001,129.37,129.36,6.64]
[1742184101423,0.0001,129.37,129.36,23.00694652]
[1742184102118,0.0001,129.37,129.36,30.73724652]
[1742184103697,0.0001,129.37,129.36,6.64]
[1742184105803,0.0001,129.37,129.34,0.063]
[1742184106109,0.0001,129.37,129.35,6.64]
[1742184106819,16.36704652,129.37,129.34,0.063]
[1742184108029,7.7303,129.36,129.34,0.063]
[1742184108409,24.09724652,129.36,129.34,0.063]
[1742184111926,7.73,129.37,129.34,0.063]
[1742184112115,24.09694652,129.37,129.34,0.063]
[1742184112532,16.36694652,129.36,129.34,0.063]